[Event "Romanian Team Blitz Women 2022"]
[Site "Sebes"]
[Date "2022.12.04"]
[Round "4.6"]
[White "Hoanca, Alexia-Ioana"]
[Black "Schiopu, Andreea-Alexandra"]
[Result "1-0"]
[ECO "B01"]
[WhiteElo "1644"]
[BlackElo "1716"]
[Annotator "NA RC COMBH"]
[PlyCount "65"]
[EventDate "2022.12.04"]
[EventType "blitz"]
[EventCountry "ROU"]
[SourceTitle "playchess.com"]
[Source "ChessBase"]
[SourceQuality "1"]
[TimeControl "180+2"]

1. e4 {[%emt 0:00:01]} d5 {[%emt 0:00:01]} 2. exd5 {[%emt 0:00:01]} Qxd5 {[%emt 0:00:01]} 3. Nc3 {[%emt 0:00:01]} Qa5 {[%emt 0:00:01]} 4. d4 {[%emt 0:00:01]} c6 {[%emt 0:00:00]} 5. Nf3 {[%emt 0:00:03]} Nf6 {[%emt 0:00:02]} 6. h3 {[%emt 0:00:04]} Bf5 {[%emt 0:00:03]} 7. Bc4 {[%emt 0:00:04]} e6 {[%emt 0:00:02]} 8. Bd2 {[%emt 0:00:01]} Qc7 {[%emt 0:00:01]} 9. g4 {[%emt 0:00:01]} Bg6 {[%emt 0:00:02]} 10. h4 {[%emt 0:00:07]} Nxg4 {[%emt 0:00:16]} 11. h5 {[%emt 0:00:01]} Bf5 {[%emt 0:00:01]} 12. Nh4 {[%emt 0:00:00]} Nd7 {[%emt 0:00:54]} 13. Nxf5 {[%emt 0:01:34]} exf5 {[%emt 0:00:01]} 14. Qf3 {[%emt 0:00:02]} O-O-O {[%emt 0:00:29]} 15. O-O-O {[%emt 0:00:05]} g6 {[%emt 0:00:07]} 16. Bxf7 {[%emt 0:00:20]} Bh6 {[%emt 0:00:46]} 17. Bxh6 {[%emt 0:00:17]} Nxh6 {[%emt 0:00:01]} 18. hxg6 {[%emt 0:00:02]} Nxf7 {[%emt 0:00:30]} 19. gxf7 {[%emt 0:00:04]} Rdf8 {[%emt 0:00:05]} 20. Qxf5 {[%emt 0:00:04]} Kb8 {[%emt 0:00:06]} 21. d5 {[%emt 0:00:11]} Nb6 {[%emt 0:00:06]} 22. Rxh7 {[%emt 0:00:15]} Rxh7 {[%emt 0:00:01]} 23. Qxh7 {[%emt 0:00:02]} Qf4+ {[%emt 0:00:01]} 24. Kb1 {[%emt 0:00:01]} Qxf2 {[%emt 0:00:04]} 25. dxc6 {[%emt 0:00:06]} bxc6 {[%emt 0:00:02]} 26. Qg6 {[%emt 0:00:05]} Qf3 {[%emt 0:00:06]} 27. Qd6+ {[%emt 0:00:03]} Kb7 {[%emt 0:00:02]} 28. Qxf8 {[%emt 0:00:03]} Nc4 {[%emt 0:00:02]} 29. Qe7+ {[%emt 0:00:03]} Kb6 {[%emt 0:00:01]} 30. Qd8+ {[%emt 0:00:03]} Kb7 {[%emt 0:00:01]} 31. f8=Q {[%emt 0:00:04]} Nd2+ {[%emt 0:00:06]} 32. Rxd2 {[%emt 0:00:02]} Qxf8 {[%emt 0:00:01]} 33. Qxf8 {[%emt 0:00:01]} 1-0

[Event "Romanian Team Blitz Women 2022"]
[Site "Sebes"]
[Date "2022.12.04"]
[Round "5.1"]
[White "Sariteanu, Sabina"]
[Black "Ionica, Iulia-Ionela"]
[Result "0-1"]
[ECO "B92"]
[WhiteElo "1752"]
[BlackElo "2177"]
[Annotator "TA"]
[PlyCount "56"]
[EventDate "2022.12.04"]
[EventType "blitz"]
[EventCountry "ROU"]
[SourceTitle "playchess.com"]
[Source "ChessBase"]
[SourceQuality "1"]
[TimeControl "180+2"]

{[%evp 17,56,-14,0,-21,16,-27,-19,-62,31,-24,-10,-29,-11,-12,34,-180,-35,-27,90,95,109,83,127,120,332,-141,-123,-128,-127,-309,-231,-393,-240,-381,-303,-290,-299,-499,-500,-481,-427]} 1. e4 {[%emt 0:00:00]} c5 {[%emt 0:00:01]} 2. Nf3 {[%emt 0:00:02]} d6 {[%emt 0:00:01]} 3. d4 {[%emt 0:00:01]} cxd4 {[%emt 0:00:01]} 4. Nxd4 {[%emt 0:00:01]} Nf6 {[%emt 0:00:02]} 5. Nc3 {[%emt 0:00:02]} a6 {[%emt 0:00:02]} 6. Be2 {[%emt 0:00:04]} e5 {[%emt 0:00:02]} 7. Nb3 {[%emt 0:00:03]} Be7 {[%emt 0:00:01]} 8. Be3 {[%emt 0:00:02]} Be6 {[%emt 0:00:12]} 9. Qd2 {[%emt 0:00:16]} O-O {[%emt 0:00:38]} 10. Rd1 {[%emt 0:00:19] B92: Sicilian Najdorf: 6 Be2.} b5 {[%emt 0:00:04]} 11. a3 {[%emt 0:00:09]} Nbd7 {[%emt 0:00:19]} 12. f3 {[%emt 0:00:08] [#] The position is equal.} Nc5 $146 {[%emt 0:00:12]} ({Black should play} 12... Nb6 $15) ({Predecessor:} 12... Qc7 13. O-O Rac8 14. f4 Rfd8 15. Qe1 exf4 16. Bxf4 Nf8 17. Nd4 Ng6 {0-1 (37) Hervada Serrano,D (1708)-Calvo Gonzalez,J (2082) Salobrena 2022}) 13. Nc1 {[%emt 0:00:21]} (13. Nxc5 $14 dxc5 14. Nd5) 13... Qc7 {[%emt 0:00:13]} 14. O-O {[%emt 0:00:02]} Rab8 {[%emt 0:00:02]} 15. Nd3 {[%emt 0:00:09]} Nb7 {[%emt 0:00:09]} (15... Nxd3 $11 16. Bxd3 (16. Qxd3 Rfc8 $11) 16... h6) 16. Na2 $2 {[%emt 0:00:05] [#]} d5 {[%emt 0:00:03]} ({Black should try} 16... Bxa2 $19 17. Nb4 Be6 18. Nxa6 Qc6 19. Nxb8 Rxb8) 17. Nab4 $15 {[%emt 0:00:10]} dxe4 {[%emt 0:00:10]} (17... d4 $11 {remains equal.} 18. Bf2 (18. Nxa6 dxe3 19. Qxe3 Qc8 $15) 18... Ra8) 18. Nxa6 $16 {[%emt 0:00:16]} Qc8 {[%emt 0:00:08]} 19. Nxe5 {[%emt 0:00:05]} Ra8 {[%emt 0:00:07]} 20. Bxb5 {[%emt 0:00:03] And now Nc6 would win.} Nd6 $2 {[%emt 0:00:16] [#]} (20... exf3 $16 {might work better.} 21. gxf3 (21. Rxf3 Rd8 $14) 21... Bd6) 21. Be2 $2 {[%emt 0:00:06]} (21. Nc6 $1 $18 {[%cal Rc6e7]} Nf5 22. fxe4) 21... Rxa6 $17 {[%emt 0:00:02]} 22. Bxa6 {[%emt 0:00:01]} Qxa6 {[%emt 0:00:01]} 23. f4 $2 {[%emt 0:00:18]} (23. Rfe1 $17) 23... Rc8 {[%emt 0:00:08] Threatens to win with ...Nd5.} 24. Rc1 $2 {[%emt 0:00:04]} (24. Kh1 {was called for.}) 24... Ng4 {[%emt 0:00:03] aiming for ...Nxe3.} 25. Bd4 {[%emt 0:00:08]} (25. Rfe1 $142) 25... Nxe5 {[%emt 0:00:04] Really sharp!} 26. fxe5 {[%emt 0:00:02]} Nf5 {[%emt 0:00:03]} 27. c3 {[%emt 0:00:04]} (27. Rxf5 Bxf5 28. c3) 27... e3 $19 {[%emt 0:00:12]} 28. Qe1 {[%emt 0:00:15]} Nxd4 {[%emt 0:00:10] Weighted Error Value: White=1.15/Black=0.60} 0-1

[Event "Romanian Team Blitz Women 2022"]
[Site "Sebes"]
[Date "2022.12.04"]
[Round "5.2"]
[White "Visanescu, Daria-Ioana"]
[Black "Chicarosie, Ioana-Bianca"]
[Result "1-0"]
[ECO "B22"]
[WhiteElo "2117"]
[BlackElo "1815"]
[Annotator "TA"]
[PlyCount "120"]
[EventDate "2022.12.04"]
[EventType "blitz"]
[EventCountry "ROU"]
[SourceTitle "playchess.com"]
[Source "ChessBase"]
[SourceQuality "1"]
[TimeControl "180+2"]

{[%evp 23,120,-9,0,-14,0,0,0,-34,21,0,29,29,20,-34,7,0,0,-18,-11,-41,0,0,0,-20,-10,-24,-19,-16,-12,-8,43,0,0,-262,0,-2,-2,-10,0,0,254,251,318,318,318,311,311,273,318,272,320,297,320,273,273,258,292,233,225,233,260,253,237,243,243,240,264,259,262,228,239,175,249,179,255,251,249,209,391,384,504,470,504,470,503,496,502,0,463,456,456,449,449,449,447,447,438,400,433]} 1. e4 {[%emt 0:00:00]} c5 {[%emt 0:00:02]} 2. c3 {[%emt 0:00:01]} d5 {[%emt 0:00:01]} 3. exd5 {[%emt 0:00:01]} Qxd5 {[%emt 0:00:01]} 4. d4 {[%emt 0:00:01]} Nf6 {[%emt 0:00:09]} 5. Nf3 {[%emt 0:00:01]} Bg4 6. Be2 e6 {[%emt 0:00:03]} 7. a3 {[%emt 0:00:05]} cxd4 {[%emt 0:00:09]} 8. cxd4 {[%emt 0:00:02]} Nc6 {[%emt 0:00:01]} 9. Nc3 {[%emt 0:00:01]} Qd8 {[%emt 0:00:17]} 10. Be3 {[%emt 0:00:01]} Be7 {[%emt 0:00:03]} 11. O-O {[%emt 0:00:02]} O-O {[%emt 0:02:38]} 12. h3 Bh5 {[%emt 0:00:00]} 13. Qd2 {[%emt 0:00:04] B22: Sicilian: 2 c3.} Nd5 {[%emt 0:00:00]} 14. Rac1 {[%emt 0:00:12]} Rc8 {[%emt 0:00:00]} 15. Rfd1 {[%emt 0:00:05] [#] The position is equal.} Bf6 $146 {[%emt 0:00:00]} (15... Nxe3 $15 16. fxe3 Na5) ({Predecessor:} 15... Na5 16. Qe1 Bg6 17. Nxd5 Qxd5 18. Bd3 Rxc1 19. Bxc1 Nb3 20. Bxg6 hxg6 21. Qc3 Rd8 {½-½ (27) Teh,E-Liu,Y Singapore 2008}) 16. Ne4 {[%emt 0:00:03]} Bg6 {[%emt 0:00:00]} 17. Nxf6+ {[%emt 0:00:16]} Nxf6 {[%emt 0:00:00]} 18. Bd3 {[%emt 0:00:05]} (18. Ne5 $11) 18... Ne4 {[%emt 0:00:00]} 19. Qe2 {[%emt 0:00:30]} Ne7 {[%emt 0:00:00]} 20. Nh4 {[%emt 0:00:12]} Nf6 {[%emt 0:00:00]} 21. Bg5 {[%emt 0:00:10]} Ned5 {[%emt 0:00:00]} (21... Qxd4 $2 22. Rxc8 Rxc8 23. Bxg6 $18) (21... Bxd3 {is interesting.} 22. Qxd3 Nfd5 23. Rc5 Qd7) 22. Rxc8 {[%emt 0:00:30]} Qxc8 {[%emt 0:00:00]} 23. Nf3 {[%emt 0:00:09]} Qc7 {[%emt 0:00:00]} (23... Bxd3 {simplifies} 24. Qxd3 Qb8 25. Bxf6 Nxf6 26. Rc1 Nd5) 24. Rc1 {[%emt 0:00:11]} Qb6 {[%emt 0:00:00]} 25. b4 {[%emt 0:00:30]} Rd8 {[%emt 0:00:01]} 26. Bc4 {[%emt 0:00:06]} Rd7 {[%emt 0:00:12]} (26... Rc8 $11) 27. Ne5 {[%emt 0:00:04]} Rc7 {[%emt 0:00:03]} 28. Rd1 $2 {[%emt 0:00:19][%mdl 8192]} (28. Qb2 $11 {and White has nothing to worry.}) 28... a5 $2 {[%emt 0:00:10]} (28... Nc3 $19 29. Qf3 Nxd1 30. Qxd1 h6) 29. bxa5 {[%emt 0:00:05]} Qxa5 {[%emt 0:00:01]} 30. Bxd5 {[%emt 0:00:09] [#] Hoping for Bf3.} (30. Qb2 {simplifies} Qc3 31. Qxc3 Nxc3 32. Re1) 30... Nxd5 {[%emt 0:00:01]} (30... Rc2 {simplifies} 31. Rd2 Rxd2 32. Bxd2 Qxd5 33. Qe3 Qd8) 31. Bd8 $36 {[%emt 0:00:01][%cal Bg5d8,Bd8c7,Bc7a5,Ba5d2,Bd2f4][%mdl 2080] White has the initiative.} Nc3 $2 {[%emt 0:00:05][%mdl 8192] Black is now going downhill.} (31... Rc2 $1 $11 {and Black stays safe.} 32. Bxa5 Rxe2) 32. Qd2 $18 {[%emt 0:00:02] aiming for Re1.} Qa6 {[%emt 0:00:03]} 33. Bxc7 {[%emt 0:00:02]} Nxd1 {[%emt 0:00:02]} 34. Qxd1 {[%emt 0:00:01]} Qxa3 {[%emt 0:00:02]} 35. Kh2 {[%emt 0:00:02]} Qe7 {[%emt 0:00:02]} 36. Ba5 {[%emt 0:00:01]} Qa3 {[%emt 0:00:02]} 37. Bd2 {[%emt 0:00:03]} Be4 {[%emt 0:00:01]} 38. f3 {[%emt 0:00:01]} Bd5 {[%emt 0:00:01]} 39. Bf4 {[%emt 0:00:04]} b5 {[%emt 0:00:02]} 40. Qc1 {[%emt 0:00:01] Inhibits f6.} Qxc1 {[%emt 0:00:03]} 41. Bxc1 {[%emt 0:00:01]} b4 {[%emt 0:00:01]} 42. Nd3 {[%emt 0:00:04]} b3 {[%emt 0:00:02]} 43. Kg3 {[%emt 0:00:02]} Bc4 {[%emt 0:00:03]} 44. Nb2 {[%emt 0:00:01]} Bd5 {[%emt 0:00:04]} 45. Kf4 {[%emt 0:00:01]} Kf8 {[%emt 0:00:02]} 46. g4 {[%emt 0:00:02][%cal Bg2g4,Bg4g5][%mdl 32]} Ke7 {[%emt 0:00:01]} 47. Ke3 {[%emt 0:00:04]} Kd6 {[%emt 0:00:02]} (47... g5 {was necessary.} 48. Na4 Bc6) 48. Bd2 {[%emt 0:00:02]} Kc6 {[%emt 0:00:02]} (48... g5 {was called for.} 49. Bb4+ Kd7) 49. Bb4 {[%emt 0:00:01]} Kb5 {[%emt 0:00:02]} 50. Bc3 {[%emt 0:00:11]} g6 $2 {[%emt 0:00:02]} (50... g5 51. Be1 h6) 51. g5 {[%emt 0:00:00]} Kb6 {[%emt 0:00:04]} 52. f4 {[%emt 0:00:00]} Kb5 {[%emt 0:00:02]} 53. h4 {[%emt 0:00:00]} Kb6 {[%emt 0:00:02]} 54. Nd3 {[%emt 0:00:00]} Kb5 {[%emt 0:00:01]} 55. Nb2 {[%emt 0:00:03]} Kb6 $1 {[%emt 0:00:02]} 56. Kd3 {[%emt 0:00:03]} Kb5 {[%emt 0:00:01]} 57. Nd1 {[%emt 0:00:02]} Bc4+ {[%emt 0:00:02]} 58. Kd2 {[%emt 0:00:02] [#] Threatens to win with Ne3.} Bd5 {[%emt 0:00:04]} 59. Ne3 {[%emt 0:00:01] Nxd5 is the strong threat.} Be4 {[%emt 0:00:03]} 60. Ng4 {[%emt 0:00:03]} Bd5 {[%emt 0:00:05] Weighted Error Value: White=0.31/Black=0.39} 1-0

[Event "Romanian Team Blitz Women 2022"]
[Site "Sebes"]
[Date "2022.12.04"]
[Round "5.3"]
[White "Hoanca, Alexia-Ioana"]
[Black "Bucur, Denisa-Andreea"]
[Result "1/2-1/2"]
[ECO "B12"]
[WhiteElo "1644"]
[BlackElo "1953"]
[Annotator "TA"]
[PlyCount "94"]
[EventDate "2022.12.04"]
[EventType "blitz"]
[EventCountry "ROU"]
[SourceTitle "playchess.com"]
[Source "ChessBase"]
[SourceQuality "1"]
[TimeControl "180+2"]

{[%evp 9,93,-22,18,7,0,0,10,14,20,-18,0,0,-6,-34,0,0,36,47,50,-14,16,3,10,0,36,-24,-27,-56,54,50,186,173,198,64,63,68,189,147,165,35,50,9,46,52,60,59,272,0,133,0,259,0,133,0,248,0,133,0,175,0,122,0,178,0,72,0,18,14,42,-65,-41,-195,-185,-1371,-1371,-1359,-1352,-29996,-29997,-29997,-29998,-29998,-29998,-29998,-29999,-29999]} 1. e4 {[%emt 0:00:01]} c6 {[%emt 0:00:00]} 2. d4 {[%emt 0:00:02]} d5 {[%emt 0:00:01]} 3. f3 {[%emt 0:00:00]} e6 {[%emt 0:00:03]} 4. Nc3 {[%emt 0:00:01]} Bb4 {[%emt 0:00:01]} 5. Bf4 {[%emt 0:00:01]} Ne7 {[%emt 0:00:02]} 6. Qd3 {[%emt 0:00:02] B12: Caro-Kann: Advance Variation.} Nd7 {[%emt 0:00:01][%cal Oe6e5]} 7. O-O-O {[%emt 0:00:02]} O-O {[%emt 0:00:01][%cal Oe6e5]} 8. Nge2 {[%emt 0:00:09] The position is equal.} b5 {[%emt 0:00:04]} (8... Nb6 {keeps more tension.} 9. h4 Nc4 10. Nb1 Ng6) 9. g4 {[%emt 0:00:02]} a5 {[%emt 0:00:10]} 10. h4 {[%emt 0:00:02]} Ba6 {[%emt 0:00:29]} 11. Qe3 {[%emt 0:00:01] [#]} c5 $146 {[%emt 0:00:26]} ({Predecessor:} 11... Nb6 12. Ng3 Ng6 13. Bg5 f6 14. h5 fxg5 15. hxg6 h6 16. exd5 Qf6 17. Nh5 Qe7 18. dxe6 Bxc3 19. Qxc3 {1-0 (38) Wojtaszewski,P (2004)-Borysiak,B (2131) Warsaw 2011}) 12. exd5 $1 {[%emt 0:01:01]} Nxd5 {[%emt 0:00:12]} (12... exd5 $5 13. h5 c4 $11) 13. Nxd5 {[%emt 0:00:05]} exd5 {[%emt 0:00:11]} 14. dxc5 {[%emt 0:00:07]} (14. c3 $14 cxd4 15. Qxd4) 14... Bxc5 {[%emt 0:00:02]} (14... Re8 $5 {[%cal Re8e3]} 15. Qd4 Nxc5 $11) 15. Qd2 {[%emt 0:00:03]} Nb6 {[%emt 0:00:01]} 16. Nc3 {[%emt 0:00:21]} (16. Qxa5 Qc8 17. Nd4 Bb7 18. Qxb5 Rxa2 $19) (16. Ng3 {looks sharper.} Nc4 17. Bxc4 dxc4 18. Qc3) 16... Qf6 {[%emt 0:01:01]} 17. Bg5 {[%emt 0:00:26] Inhibits b4.} (17. Bxb5 $2 {perishes.} Bxb5 18. Kb1 Bb4 $19) (17. g5 $14 Qc6 18. h5 (18. Nxd5 $2 Rad8 $17)) 17... Qc6 $11 {[%emt 0:00:11]} 18. Kb1 {[%emt 0:00:42][%cal Rc3d5]} d4 {[%emt 0:00:04]} ({Better is} 18... h6 $15) 19. Ne4 $14 {[%emt 0:00:02]} Nc4 {[%emt 0:00:25]} (19... f6 $14) 20. Bxc4 $18 {[%emt 0:00:03]} bxc4 {[%emt 0:00:01] [#]} 21. Nxc5 {[%emt 0:00:02]} (21. Qxa5 $2 {too greedy.} Bb5 $19) ({White must play} 21. Bf6 $1 $18 {[%mdl 512]} Rfe8 (21... Rfb8 22. Bxd4) 22. Qg5 (22. Bxd4 Bxd4 23. Qxd4 Qc7 $16)) 21... Qxc5 $14 {[%emt 0:00:02]} 22. Qxd4 {[%emt 0:00:01]} Qb4 {[%emt 0:00:05]} (22... Qxd4 $14 23. Rxd4 c3) 23. a3 {[%emt 0:00:04]} Qb7 {[%emt 0:00:02]} 24. Qd7 {[%emt 0:00:06]} (24. Qc3 $18) 24... Qxf3 {[%emt 0:00:03]} 25. Rdf1 {[%emt 0:00:09] Against c3} (25. Rhf1 {simplifies} Qb7 26. Qxb7 Bxb7 27. Bd2) 25... Qe2 {[%emt 0:00:02]} (25... Qb7 {simplifies} 26. Qxb7 Bxb7 27. Rhg1 Rfe8) 26. Re1 {[%emt 0:00:06]} Qg2 {[%emt 0:00:05][%cal Oc4c3]} 27. Rhg1 {[%emt 0:00:02] Prevents c3.} Qh2 {[%emt 0:00:05]} ({Black should try} 27... Qf2 $14) 28. Rh1 $2 {[%emt 0:00:03]} (28. Be7 $1 $18 {[%cal Re7f8]} Rfb8 29. Bd6) 28... Qg3 {[%emt 0:00:02]} (28... Qg2 $1 $11) 29. Rhg1 {[%emt 0:00:01]} (29. h5 $1 $16 {[%cal Rh5h6] Hoping for h6.} h6 30. Be7) 29... Qh2 $1 $18 {[%emt 0:00:02][%cal Oc4c3]} 30. Rh1 $2 {[%emt 0:00:01]} (30. Be7 $1 $18 {[%cal Re7f8]} Rfb8 31. Bd6) 30... Qg3 {[%emt 0:00:01]} (30... Qg2 $11 {remains equal.}) 31. Rhg1 {[%emt 0:00:02]} (31. h5 $1 $16 {[%cal Rh5h6] And now h6 would win.} h6 32. Be7) 31... Qh2 {[%emt 0:00:01][%cal Oc4c3]} 32. Rh1 $2 {[%emt 0:00:02]} (32. Be7 $1 $18 {[%cal Re7f8]} Rfb8 33. Bd6) 32... Qg3 {[%emt 0:00:02]} (32... Qg2 $11) 33. Rhg1 {[%emt 0:00:02]} Qh2 {[%emt 0:00:01][%cal Oc4c3]} 34. Rh1 $2 {[%emt 0:00:02]} (34. Be7 $1 $18 {[%cal Re7f8]} Rfb8 35. Bd6) 34... Qg3 {[%emt 0:00:02] [#]} (34... Qg2 $11 {keeps the balance.}) 35. Rhg1 {[%emt 0:00:01]} (35. h5 $1 $16 {[%cal Rh5h6] h6 is the strong threat.} h6 36. Be7) 35... Qh2 $1 {[%emt 0:00:02][%cal Oc4c3] [#]} 36. Rh1 $2 {[%emt 0:00:01]} (36. Be7 $1 $18 {[%cal Re7f8]} Rfb8 37. Bd6) 36... Qb8 {[%emt 0:00:01]} (36... Qg2 $11) 37. c3 {[%emt 0:00:13]} (37. Qd2 $16) 37... Qb3 {[%emt 0:00:04]} 38. Bc1 {[%emt 0:00:02] Active counter play!} (38. Ka1 {simplifies} Qb5 39. Qd6 Bb7 40. Rhf1) 38... Rab8 {[%emt 0:00:01]} (38... Qb5 {simplifies} 39. Qc7 Qb8 40. Qc5 Qb5) 39. Qf5 {[%emt 0:00:02]} (39. Ka1 $14) 39... Qxc3 {[%emt 0:00:04]} 40. Qc2 $2 {[%emt 0:00:01]} (40. Ka1 $15 Qb3 41. Re3) 40... Qxa3 $19 {[%emt 0:00:02]} 41. Rhf1 $2 {[%emt 0:00:02]} (41. Re3 c3 42. Rxc3) 41... c3 {[%emt 0:00:03][%cal Oa6d3] ( -> ...Bd3!)} 42. Rf3 {[%emt 0:00:01] Against Bd3} Bc4 {[%emt 0:00:03][%csl Gc4][%cal Ra3a2]} 43. b4 {[%emt 0:00:06]} Rxb4+ {[%emt 0:00:01] Black mates.} 44. Bb2 {[%emt 0:00:02]} Rxb2+ {[%emt 0:00:02]} 45. Kc1 {[%emt 0:00:02]} Rxc2+ {[%emt 0:00:01]} 46. Kxc2 {[%emt 0:00:01]} Qb2+ {[%emt 0:00:02]} 47. Kd1 {[%emt 0:00:01]} Qd2# {[%emt 0:00:01][%mdl 32768] Never resign too early!   Weighted Error Value: White=0.87/Black=0.38. An unexpected result.} 1/2-1/2

[Event "Romanian Team Blitz Women 2022"]
[Site "Sebes"]
[Date "2022.12.04"]
[Round "5.4"]
[White "Peptan, Corina-Isabela"]
[Black "Bulmaga, Irina"]
[Result "1/2-1/2"]
[ECO "D37"]
[WhiteElo "2351"]
[BlackElo "2426"]
[Annotator "TA"]
[PlyCount "75"]
[EventDate "2022.12.04"]
[EventType "blitz"]
[EventCountry "ROU"]
[SourceTitle "playchess.com"]
[Source "ChessBase"]
[SourceQuality "1"]
[TimeControl "180+2"]

{[%evp 12,75,29,0,1,0,-13,-10,-7,-45,-24,-18,-12,-26,-17,-60,-58,-62,-85,-91,-45,-46,-34,-30,21,0,0,0,35,45,29,-50,-57,-47,-10,-7,-7,-7,-7,-14,-14,-14,-7,-7,-7,-7,-7,-7,-7,-14,-14,-14,-14,-14,-14,-14,-14,-14,-14,-14,-14,-14,0,0,0,0]} 1. d4 {[%emt 0:00:02]} Nf6 {[%emt 0:00:01]} 2. c4 {[%emt 0:00:01]} e6 {[%emt 0:00:02]} 3. Nf3 {[%emt 0:00:01]} d5 {[%emt 0:00:01]} 4. Nc3 {[%emt 0:00:02]} Be7 {[%emt 0:00:02]} 5. Bf4 {[%emt 0:00:02]} O-O {[%emt 0:00:02]} 6. e3 {[%emt 0:00:01]} Nbd7 {[%emt 0:00:02]} 7. h3 {[%emt 0:00:01]} c5 {[%emt 0:00:01][%cal Bc7c5,Bc5c4,Bc4b3][%mdl 32] D37: Queen's Gambit Declined: 5 Bf4.} 8. cxd5 {[%emt 0:00:05]} Nxd5 {[%emt 0:00:03]} 9. Nxd5 {[%emt 0:00:07]} exd5 {[%emt 0:00:02]} 10. a3 {[%emt 0:00:05]} Qa5+ {[%emt 0:00:09]} 11. Qd2 {[%emt 0:00:02]} Qxd2+ {[%emt 0:00:06]} 12. Kxd2 {[%emt 0:00:02]} (12. Nxd2 {simplifies} cxd4 13. exd4 Re8 14. Be2) 12... c4 {[%emt 0:00:23] [#]} 13. b3 $146 {[%emt 0:00:13]} ({Predecessor:} 13. g4 b5 14. Bg2 Nb6 15. Ke2 a5 16. Nd2 Be6 17. Rhc1 Rfc8 18. e4 dxe4 19. Nxe4 {½-½ (34) Binder,M (2004)-Fedorovsky,M (2392) Schwarzach 2013}) 13... cxb3 {[%emt 0:00:10] Strongly threatening ...Nf6.} 14. Kc3 {[%emt 0:00:10]} Nf6 {[%emt 0:00:03] And now ...Bf5 would win.} 15. Bd3 {[%emt 0:00:01] Prevents Bf5.} Be6 {[%emt 0:00:17]} (15... Ne4+ $17 16. Bxe4 dxe4) 16. Ng5 $15 {[%emt 0:00:29]} Rac8+ {[%emt 0:00:25]} 17. Kxb3 {[%emt 0:00:02]} Rc6 {[%emt 0:00:08]} (17... Bd7 $142) 18. Nxe6 {[%emt 0:00:07]} fxe6 {[%emt 0:00:01]} 19. Rhc1 {[%emt 0:00:27]} Nh5 {[%emt 0:00:03] [#] Hoping for ...Rb6+.} 20. Rxc6 {[%emt 0:00:16]} bxc6 {[%emt 0:00:01]} 21. Bg3 {[%emt 0:00:35]} (21. Be5 $11) 21... Nxg3 {[%emt 0:00:02]} 22. fxg3 {[%emt 0:00:01][%mdl 4096] Endgame KRB-KRB} c5 {[%emt 0:00:04]} 23. dxc5 {[%emt 0:00:05] The position is equal.} Bxc5 {[%emt 0:00:01]} 24. e4 $1 {[%emt 0:00:04]} Rf2 {[%emt 0:00:19]} 25. Ra2 {[%emt 0:00:05]} Rxa2 {[%emt 0:00:10]} 26. Kxa2 $11 {[%emt 0:00:01] KB-KB} h6 {[%emt 0:00:10]} 27. Kb3 {[%emt 0:00:15]} Kf7 {[%emt 0:00:01]} 28. a4 {[%emt 0:00:01]} Kf6 {[%emt 0:00:03]} 29. exd5 {[%emt 0:00:07]} exd5 {[%emt 0:00:01]} 30. Bb5 {[%emt 0:00:01]} Ke5 {[%emt 0:00:07]} 31. Bc6 {[%emt 0:00:01]} Bf2 {[%emt 0:00:05]} 32. g4 {[%emt 0:00:01]} Be1 {[%emt 0:00:02]} 33. Bb7 {[%emt 0:00:05]} Kd4 {[%emt 0:00:13]} 34. Bc6 {[%emt 0:00:01]} a5 {[%emt 0:00:02]} 35. Bb7 {[%emt 0:00:02]} Ke5 {[%emt 0:00:10]} 36. Bc6 {[%emt 0:00:03]} d4 {[%emt 0:00:05]} 37. Kc4 {[%emt 0:00:02]} Bc3 {[%emt 0:00:03]} 38. Kd3 {[%emt 0:00:02] Weighted Error Value: White=0.10 (very precise) /Black=0.10 (very precise)} 1/2-1/2